[Event "Titled Tuesday Blitz March 15 Late 2022"]
[White "Cagara, Paulina"]
[Black "Martin Barcelo, Carles"]
[WhiteFideId "1124870"]
[BlackFideId "24561444"]
[WhiteElo "1780"]
[BlackElo "1875"]
[Result "0-1"]
[Round "04"]
[TimeControl "180+1"]
[Date "2022.03.16"]
[WhiteClock "0:00:01"]
[BlackClock "0:00:09"]

1. e4 {[%clk 0:02:51]}  e6 {[%clk 0:02:57]} 2. d4 {[%clk 0:02:50]}  d5 {[%clk 0:02:56]} 3. Nc3 {[%clk 0:02:50]}  dxe4 {[%clk 0:02:55]} 4. Nxe4 {[%clk 0:02:49]}  Nd7 {[%clk 0:02:56]} 5. Bd3 {[%clk 0:02:47]}  Ngf6 {[%clk 0:02:56]} 6. Bg5 {[%clk 0:02:46]}  Be7 {[%clk 0:02:54]} 7. Nxf6+ {[%clk 0:02:44]}  Bxf6 {[%clk 0:02:52]} 8. Bxf6 {[%clk 0:02:41]}  Qxf6 {[%clk 0:02:51]} 9. Nf3 {[%clk 0:02:41]}  O-O {[%clk 0:02:50]} 10. O-O {[%clk 0:02:40]}  c5 {[%clk 0:02:50]} 11. c3 {[%clk 0:02:36]}  b6 {[%clk 0:02:44]} 12. Be4 {[%clk 0:02:33]}  Rb8 {[%clk 0:02:40]} 13. Bc6 {[%clk 0:02:29]}  Rd8 {[%clk 0:02:28]} 14. Qa4 {[%clk 0:02:17]}  a5 {[%clk 0:02:01]} 15. Rad1 {[%clk 0:02:15]}  Qe7 {[%clk 0:01:45]} 16. Rfe1 {[%clk 0:02:11]}  Nf6 {[%clk 0:01:37]} 17. Ne5 {[%clk 0:02:01]}  Ba6 {[%clk 0:01:07]} 18. Bf3 {[%clk 0:01:49]}  Qe8 {[%clk 0:00:39]} 19. Nc6 {[%clk 0:01:36]}  Rdc8 {[%clk 0:00:25]} 20. dxc5 {[%clk 0:01:32]}  Bb7 {[%clk 0:00:18]} 21. Rd6 {[%clk 0:01:10]}  b5 {[%clk 0:00:17]} 22. Qxa5 {[%clk 0:00:35]}  Bxc6 {[%clk 0:00:15]} 23. Bxc6 {[%clk 0:00:35]}  Rxc6 {[%clk 0:00:16]} 24. Red1 {[%clk 0:00:32]}  Rxd6 {[%clk 0:00:12]} 25. cxd6 {[%clk 0:00:32]}  Qd7 {[%clk 0:00:12]} 26. h4 {[%clk 0:00:31]}  h5 {[%clk 0:00:11]} 27. Qc7 {[%clk 0:00:28]}  Rd8 {[%clk 0:00:10]} 28. b3 {[%clk 0:00:25]}  Ng4 {[%clk 0:00:06]} 29. Qxd7 {[%clk 0:00:23]}  Rxd7 {[%clk 0:00:07]} 30. f3 {[%clk 0:00:23]}  Nf6 {[%clk 0:00:06]} 31. c4 {[%clk 0:00:22]}  bxc4 {[%clk 0:00:05]} 32. bxc4 {[%clk 0:00:22]}  Kf8 {[%clk 0:00:03]} 33. c5 {[%clk 0:00:22]}  Ra7 {[%clk 0:00:02]} 34. c6 {[%clk 0:00:22]}  Ke8 {[%clk 0:00:03]} 35. c7 {[%clk 0:00:21]}  Kd7 {[%clk 0:00:03]} 36. Rc1 {[%clk 0:00:20]}  Ra8 {[%clk 0:00:03]} 37. a4 {[%clk 0:00:17]}  Ne8 {[%clk 0:00:04]} 38. c8=Q+ {[%clk 0:00:14]}  Rxc8 {[%clk 0:00:04]} 39. Rb1 {[%clk 0:00:11]}  Nxd6 {[%clk 0:00:03]} 40. Rb6 {[%clk 0:00:09]}  Ra8 {[%clk 0:00:04]} 41. Rb4 {[%clk 0:00:08]}  Ra5 {[%clk 0:00:04]} 42. Kh2 {[%clk 0:00:08]}  Kc6 {[%clk 0:00:04]} 43. Kh3 {[%clk 0:00:07]}  Nc8 {[%clk 0:00:05]} 44. Rc4+ {[%clk 0:00:06]}  Kd7 {[%clk 0:00:05]} 45. Rb4 {[%clk 0:00:06]}  Kc7 {[%clk 0:00:05]} 46. Rc4+ {[%clk 0:00:06]}  Kb7 {[%clk 0:00:05]} 47. Rb4+ {[%clk 0:00:06]}  Nb6 {[%clk 0:00:06]} 48. Rd4 {[%clk 0:00:05]}  Rxa4 {[%clk 0:00:06]} 49. Rd2 {[%clk 0:00:05]}  Kc6 {[%clk 0:00:05]} 50. g4 {[%clk 0:00:05]}  hxg4+ {[%clk 0:00:05]} 51. fxg4 {[%clk 0:00:06]}  Ra3+ {[%clk 0:00:05]} 52. Kh2 {[%clk 0:00:06]}  Nd5 {[%clk 0:00:06]} 53. h5 {[%clk 0:00:06]}  Kd6 {[%clk 0:00:06]} 54. g5 {[%clk 0:00:05]}  Ke5 {[%clk 0:00:07]} 55. h6 {[%clk 0:00:04]}  gxh6 {[%clk 0:00:08]} 56. gxh6 {[%clk 0:00:03]}  Ra8 {[%clk 0:00:08]} 57. Rg2 {[%clk 0:00:02]}  Rh8 {[%clk 0:00:09]} 58. Rg7 {[%clk 0:00:01]}  Rxh6+ {[%clk 0:00:08]} 59. Kg3 {[%clk 0:00:02]}  Rg6+ {[%clk 0:00:08]} 60. Rxg6 {[%clk 0:00:01]}  fxg6 {[%clk 0:00:09]} 0-1


[Site "https://www.chess.com"]

[Event "Titled Tuesday Blitz March 15 Late 2022"]
[White "Chigaev, Maksim"]
[Black "Nakamura, Hikaru"]
[WhiteFideId "4108116"]
[BlackFideId "2016192"]
[WhiteElo "2502"]
[BlackElo "2850"]
[Result "0-1"]
[Round "04"]
[TimeControl "180+1"]
[Date "2022.03.15"]
[WhiteClock "0:00:01"]
[BlackClock "0:00:22"]

1. d4 {[%clk 0:02:55]}  f5 {[%clk 0:02:58]} 2. Bg5 {[%clk 0:02:54]}  c6 {[%clk 0:02:57]} 3. Nc3 {[%clk 0:02:54]}  Qb6 {[%clk 0:02:56]} 4. a3 {[%clk 0:02:53]}  d5 {[%clk 0:02:55]} 5. e3 {[%clk 0:02:50]}  Nd7 {[%clk 0:02:54]} 6. Bd3 {[%clk 0:02:48]}  e6 {[%clk 0:02:53]} 7. Nge2 {[%clk 0:02:44]}  Ngf6 {[%clk 0:02:50]} 8. O-O {[%clk 0:02:42]}  Bd6 {[%clk 0:02:49]} 9. Bf4 {[%clk 0:02:28]}  Qc7 {[%clk 0:02:47]} 10. Bxd6 {[%clk 0:02:19]}  Qxd6 {[%clk 0:02:48]} 11. f3 {[%clk 0:02:13]}  c5 {[%clk 0:02:48]} 12. dxc5 {[%clk 0:01:54]}  Nxc5 {[%clk 0:02:47]} 13. b4 {[%clk 0:01:55]}  Ncd7 {[%clk 0:02:35]} 14. Nb5 {[%clk 0:01:50]}  Qb6 {[%clk 0:02:34]} 15. Qd2 {[%clk 0:01:46]}  O-O {[%clk 0:02:31]} 16. Ned4 {[%clk 0:01:40]}  Ne5 {[%clk 0:02:26]} 17. a4 {[%clk 0:01:32]}  a6 {[%clk 0:02:24]} 18. a5 {[%clk 0:01:30]}  Qd8 {[%clk 0:02:24]} 19. Nc3 {[%clk 0:01:26]}  Bd7 {[%clk 0:02:25]} 20. Kh1 {[%clk 0:01:26]}  Rc8 {[%clk 0:02:23]} 21. Nce2 {[%clk 0:01:25]}  Qc7 {[%clk 0:02:21]} 22. f4 {[%clk 0:01:22]}  Nf7 {[%clk 0:02:20]} 23. Nf3 {[%clk 0:01:18]}  g6 {[%clk 0:01:53]} 24. Ned4 {[%clk 0:01:09]}  e5 {[%clk 0:01:53]} 25. fxe5 {[%clk 0:01:09]}  Nxe5 {[%clk 0:01:54]} 26. Nxe5 {[%clk 0:01:06]}  Qxe5 {[%clk 0:01:54]} 27. h3 {[%clk 0:00:59]}  Nh5 {[%clk 0:01:52]} 28. Kg1 {[%clk 0:00:59]}  Rfe8 {[%clk 0:01:52]} 29. Rae1 {[%clk 0:00:59]}  Re7 {[%clk 0:01:48]} 30. Nf3 {[%clk 0:00:27]}  Qc7 {[%clk 0:01:44]} 31. Nd4 {[%clk 0:00:17]}  Rce8 {[%clk 0:01:43]} 32. Rf2 {[%clk 0:00:13]}  Ng3 {[%clk 0:01:27]} 33. Rf3 {[%clk 0:00:11]}  Qe5 {[%clk 0:01:24]} 34. Qf2 {[%clk 0:00:08]}  Ne4 {[%clk 0:01:20]} 35. Bxe4 {[%clk 0:00:08]}  dxe4 {[%clk 0:01:21]} 36. Rg3 {[%clk 0:00:07]}  Rc8 {[%clk 0:01:22]} 37. h4 {[%clk 0:00:05]}  Rg7 {[%clk 0:01:18]} 38. Rd1 {[%clk 0:00:04]}  h6 {[%clk 0:01:14]} 39. Rd2 {[%clk 0:00:03]}  Rf8 {[%clk 0:01:11]} 40. Ne2 {[%clk 0:00:03]}  g5 {[%clk 0:01:11]} 41. hxg5 {[%clk 0:00:04]}  hxg5 {[%clk 0:01:12]} 42. c4 {[%clk 0:00:04]}  Be6 {[%clk 0:01:11]} 43. Rh3 {[%clk 0:00:05]}  f4 {[%clk 0:01:08]} 44. Rh5 {[%clk 0:00:05]}  f3 {[%clk 0:01:06]} 45. Nd4 {[%clk 0:00:05]}  Bxc4 {[%clk 0:00:41]} 46. gxf3 {[%clk 0:00:05]}  exf3 {[%clk 0:00:42]} 47. Rh3 {[%clk 0:00:02]}  g4 {[%clk 0:00:41]} 48. Rg3 {[%clk 0:00:03]}  Qe4 {[%clk 0:00:40]} 49. Rd1 {[%clk 0:00:03]}  Rf6 {[%clk 0:00:38]} 50. Nc2 {[%clk 0:00:02]}  Bd3 {[%clk 0:00:27]} 51. Nd4 {[%clk 0:00:02]}  Rh6 {[%clk 0:00:23]} 52. Re1 {[%clk 0:00:01]}  Qh7 {[%clk 0:00:22]} 0-1


[Site "https://www.chess.com"]

[Event "Titled Tuesday Blitz March 15 Late 2022"]
[White "Clawitter, Craig"]
[Black "Reprintsev, Alexander"]
[WhiteFideId "2023105"]
[BlackFideId "14100541"]
[WhiteElo "2220"]
[BlackElo "2108"]
[Result "0-1"]
[Round "04"]
[TimeControl "180+1"]
[Date "2022.03.16"]
[WhiteClock "0:00:02"]
[BlackClock "0:01:34"]

1. e4 {[%clk 0:02:59]}  d5 {[%clk 0:02:58]} 2. exd5 {[%clk 0:02:57]}  Qxd5 {[%clk 0:02:58]} 3. Nc3 {[%clk 0:02:56]}  Qa5 {[%clk 0:02:58]} 4. d4 {[%clk 0:02:57]}  Nf6 {[%clk 0:02:57]} 5. Nf3 {[%clk 0:02:57]}  Nc6 {[%clk 0:02:56]} 6. d5 {[%clk 0:02:35]}  Nb4 {[%clk 0:02:46]} 7. Bb5+ {[%clk 0:02:23]}  Bd7 {[%clk 0:02:37]} 8. Bxd7+ {[%clk 0:02:19]}  Nxd7 {[%clk 0:02:37]} 9. a3 {[%clk 0:01:28]}  Nf6 {[%clk 0:02:30]} 10. axb4 {[%clk 0:01:28]}  Qxa1 {[%clk 0:02:30]} 11. O-O {[%clk 0:01:17]}  Qa6 {[%clk 0:02:29]} 12. Ne5 {[%clk 0:01:07]}  Rd8 {[%clk 0:02:19]} 13. Qf3 {[%clk 0:00:58]}  e6 {[%clk 0:02:09]} 14. dxe6 {[%clk 0:00:57]}  fxe6 {[%clk 0:02:07]} 15. Bg5 {[%clk 0:00:41]}  Be7 {[%clk 0:02:06]} 16. Bxf6 {[%clk 0:00:25]}  Bxf6 {[%clk 0:02:03]} 17. Qh5+ {[%clk 0:00:25]}  g6 {[%clk 0:02:03]} 18. Nxg6 {[%clk 0:00:24]}  hxg6 {[%clk 0:02:03]} 19. Qxg6+ {[%clk 0:00:25]}  Ke7 {[%clk 0:02:03]} 20. Ne4 {[%clk 0:00:15]}  e5 {[%clk 0:01:44]} 21. Re1 {[%clk 0:00:04]}  Rdg8 {[%clk 0:01:34]} 22. Qf5 {[%clk 0:00:02]}  Qe6 {[%clk 0:01:34]} 0-1


[Site "https://www.chess.com"]

[Event "Titled Tuesday Blitz March 15 Late 2022"]
[White "Curtis, John"]
[Black "Koutlas, Nikolaos"]
[WhiteFideId "3200256"]
[BlackFideId "25827138"]
[WhiteElo "2203"]
[BlackElo "1610"]
[Result "1-0"]
[Round "04"]
[TimeControl "180+1"]
[Date "2022.03.16"]
[WhiteClock "0:00:09"]
[BlackClock "0:00:12"]

1. d4 {[%clk 0:02:48]}  Nf6 {[%clk 0:02:59]} 2. Nf3 {[%clk 0:02:47]}  g6 {[%clk 0:02:58]} 3. g3 {[%clk 0:02:47]}  Bg7 {[%clk 0:02:59]} 4. Bg2 {[%clk 0:02:47]}  O-O {[%clk 0:03:00]} 5. O-O {[%clk 0:02:47]}  d6 {[%clk 0:03:01]} 6. c4 {[%clk 0:02:46]}  c6 {[%clk 0:03:01]} 7. Nc3 {[%clk 0:02:46]}  Qa5 {[%clk 0:03:01]} 8. h3 {[%clk 0:02:43]}  e5 {[%clk 0:02:57]} 9. e4 {[%clk 0:02:16]}  exd4 {[%clk 0:02:40]} 10. Nxd4 {[%clk 0:02:16]}  Re8 {[%clk 0:02:38]} 11. Bf4 {[%clk 0:01:55]}  Qb4 {[%clk 0:02:18]} 12. Qb3 {[%clk 0:01:50]}  Qc5 {[%clk 0:01:59]} 13. Be3 {[%clk 0:01:34]}  Qh5 {[%clk 0:01:57]} 14. g4 {[%clk 0:01:17]}  Bxg4 {[%clk 0:01:55]} 15. hxg4 {[%clk 0:01:16]}  Nxg4 {[%clk 0:01:56]} 16. Nf3 {[%clk 0:01:06]}  Nd7 {[%clk 0:01:43]} 17. Rfe1 {[%clk 0:01:03]}  Nde5 {[%clk 0:01:39]} 18. Nxe5 {[%clk 0:01:03]}  Bxe5 {[%clk 0:01:31]} 19. Qd1 {[%clk 0:00:59]}  f5 {[%clk 0:01:12]} 20. Bf3 {[%clk 0:00:34]}  Qh3 {[%clk 0:00:32]} 21. Bg2 {[%clk 0:00:26]}  Qh2+ {[%clk 0:00:30]} 22. Kf1 {[%clk 0:00:26]}  Rf8 {[%clk 0:00:23]} 23. Qf3 {[%clk 0:00:10]}  Qh4 {[%clk 0:00:16]} 24. Qh3 {[%clk 0:00:07]}  Qf6 {[%clk 0:00:15]} 25. exf5 {[%clk 0:00:07]}  Qxf5 {[%clk 0:00:15]} 26. Re2 {[%clk 0:00:05]}  Rae8 {[%clk 0:00:11]} 27. Kg1 {[%clk 0:00:05]}  Nxe3 {[%clk 0:00:11]} 28. Qxe3 {[%clk 0:00:04]}  Bxc3 {[%clk 0:00:10]} 29. Qxe8 {[%clk 0:00:05]}  Rxe8 {[%clk 0:00:10]} 30. Rxe8+ {[%clk 0:00:05]}  Kf7 {[%clk 0:00:10]} 31. Re2 {[%clk 0:00:04]}  Bd4 {[%clk 0:00:08]} 32. Rae1 {[%clk 0:00:04]}  Be5 {[%clk 0:00:08]} 33. Kf1 {[%clk 0:00:02]}  c5 {[%clk 0:00:06]} 34. b3 {[%clk 0:00:02]}  b6 {[%clk 0:00:06]} 35. Bd5+ {[%clk 0:00:02]}  Kf6 {[%clk 0:00:06]} 36. Re3 {[%clk 0:00:02]}  Ke7 {[%clk 0:00:05]} 37. Rf3 {[%clk 0:00:02]}  Qg5 {[%clk 0:00:04]} 38. Ke2 {[%clk 0:00:02]}  Kd8 {[%clk 0:00:04]} 39. Re3 {[%clk 0:00:02]}  h5 {[%clk 0:00:03]} 40. Rf1 {[%clk 0:00:02]}  Qg4+ {[%clk 0:00:03]} 41. f3 {[%clk 0:00:02]}  Qg2+ {[%clk 0:00:03]} 42. Rf2 {[%clk 0:00:02]}  Qg5 {[%clk 0:00:03]} 43. f4 {[%clk 0:00:03]}  Bxf4 {[%clk 0:00:03]} 44. Ref3 {[%clk 0:00:03]}  Be5 {[%clk 0:00:03]} 45. Rf8+ {[%clk 0:00:02]}  Kd7 {[%clk 0:00:03]} 46. R2f7+ {[%clk 0:00:03]}  Qe7 {[%clk 0:00:04]} 47. Rxe7+ {[%clk 0:00:03]}  Kxe7 {[%clk 0:00:05]} 48. Rg8 {[%clk 0:00:04]}  Kf6 {[%clk 0:00:04]} 49. Kf3 {[%clk 0:00:05]}  Kg5 {[%clk 0:00:05]} 50. Ke4 {[%clk 0:00:06]}  h4 {[%clk 0:00:05]} 51. Bf7 {[%clk 0:00:06]}  Kf6 {[%clk 0:00:04]} 52. Rxg6+ {[%clk 0:00:07]}  Kxf7 {[%clk 0:00:04]} 53. Rh6 {[%clk 0:00:08]}  Bg3 {[%clk 0:00:03]} 54. Kf5 {[%clk 0:00:07]}  Kg7 {[%clk 0:00:03]} 55. Rh5 {[%clk 0:00:07]}  a5 {[%clk 0:00:02]} 56. Rg5+ {[%clk 0:00:08]}  Kf7 {[%clk 0:00:03]} 57. Rh5 {[%clk 0:00:09]}  Kg7 {[%clk 0:00:03]} 58. Rg5+ {[%clk 0:00:09]}  Kh6 {[%clk 0:00:04]} 59. Rg4 {[%clk 0:00:08]}  Kh5 {[%clk 0:00:03]} 60. Rg8 {[%clk 0:00:09]}  Kh6 {[%clk 0:00:03]} 61. Rh8+ {[%clk 0:00:09]}  Kg7 {[%clk 0:00:04]} 62. Rh5 {[%clk 0:00:10]}  a4 {[%clk 0:00:03]} 63. Rg5+ {[%clk 0:00:09]}  Kf7 {[%clk 0:00:03]} 64. bxa4 {[%clk 0:00:09]}  Be5 {[%clk 0:00:02]} 65. Rh5 {[%clk 0:00:09]}  Bg3 {[%clk 0:00:03]} 66. Rh6 {[%clk 0:00:09]}  Ke8 {[%clk 0:00:03]} 67. Ke6 {[%clk 0:00:09]}  Kd8 {[%clk 0:00:04]} 68. Rh7 {[%clk 0:00:09]}  Kc8 {[%clk 0:00:04]} 69. Kd5 {[%clk 0:00:09]}  Be5 {[%clk 0:00:03]} 70. Kc6 {[%clk 0:00:09]}  Kd8 {[%clk 0:00:03]} 71. Rxh4 {[%clk 0:00:09]}  Bc3 {[%clk 0:00:02]} 72. Rh7 {[%clk 0:00:09]}  d5 {[%clk 0:00:02]} 73. Kxd5 {[%clk 0:00:08]}  b5 {[%clk 0:00:02]} 74. axb5 {[%clk 0:00:07]}  Bd4 {[%clk 0:00:03]} 75. a4 {[%clk 0:00:06]}  Kc8 {[%clk 0:00:04]} 76. a5 {[%clk 0:00:07]}  Kb8 {[%clk 0:00:05]} 77. a6 {[%clk 0:00:07]}  Ka8 {[%clk 0:00:06]} 78. b6 {[%clk 0:00:08]}  Kb8 {[%clk 0:00:07]} 79. Rf7 {[%clk 0:00:08]}  Kc8 {[%clk 0:00:08]} 80. Rf8+ {[%clk 0:00:08]}  Kd7 {[%clk 0:00:08]} 81. a7 {[%clk 0:00:08]}  Ke7 {[%clk 0:00:09]} 82. a8=Q {[%clk 0:00:09]}  Be5 {[%clk 0:00:10]} 83. Qc6 {[%clk 0:00:09]}  Kxf8 {[%clk 0:00:11]} 84. Qe6 {[%clk 0:00:10]}  Bc7 {[%clk 0:00:12]} 85. bxc7 {[%clk 0:00:09]} 1-0


[Site "https://www.chess.com"]

[Event "Titled Tuesday Blitz March 15 Late 2022"]
[White "Deac, Bogdan-Daniel"]
[Black "Moroni, Luca Jr"]
[WhiteFideId "1226380"]
[BlackFideId "865834"]
[WhiteElo "2646"]
[BlackElo "2573"]
[Result "1-0"]
[Round "04"]
[TimeControl "180+1"]
[Date "2022.03.15"]
[WhiteClock "0:00:05"]
[BlackClock "0:00:02"]

1. e4 {[%clk 0:02:59]}  e5 {[%clk 0:02:58]} 2. Nf3 {[%clk 0:02:59]}  d6 {[%clk 0:02:59]} 3. Bc4 {[%clk 0:02:40]}  Be7 {[%clk 0:02:56]} 4. c3 {[%clk 0:02:26]}  c5 {[%clk 0:02:56]} 5. d3 {[%clk 0:02:21]}  Nc6 {[%clk 0:02:55]} 6. Nbd2 {[%clk 0:02:18]}  Be6 {[%clk 0:02:54]} 7. Nf1 {[%clk 0:02:11]}  Nf6 {[%clk 0:02:50]} 8. Ng3 {[%clk 0:02:08]}  d5 {[%clk 0:02:43]} 9. Bb5 {[%clk 0:02:00]}  Qc7 {[%clk 0:02:17]} 10. Ng5 {[%clk 0:01:24]}  Bg4 {[%clk 0:01:50]} 11. f3 {[%clk 0:01:23]}  Bd7 {[%clk 0:01:49]} 12. exd5 {[%clk 0:01:14]}  Nxd5 {[%clk 0:01:48]} 13. Bc4 {[%clk 0:01:14]}  Bxg5 {[%clk 0:01:42]} 14. Bxg5 {[%clk 0:01:15]}  Nb6 {[%clk 0:01:35]} 15. Bb3 {[%clk 0:01:11]}  f6 {[%clk 0:01:21]} 16. Be3 {[%clk 0:01:10]}  Na5 {[%clk 0:01:21]} 17. Bc2 {[%clk 0:01:09]}  Nd5 {[%clk 0:01:20]} 18. Bf2 {[%clk 0:01:00]}  O-O {[%clk 0:01:20]} 19. O-O {[%clk 0:00:59]}  b6 {[%clk 0:01:20]} 20. d4 {[%clk 0:00:46]}  exd4 {[%clk 0:01:19]} 21. cxd4 {[%clk 0:00:46]}  c4 {[%clk 0:01:20]} 22. Be4 {[%clk 0:00:46]}  Be6 {[%clk 0:01:16]} 23. Qc2 {[%clk 0:00:39]}  g6 {[%clk 0:01:13]} 24. Rae1 {[%clk 0:00:39]}  Bf7 {[%clk 0:01:05]} 25. Ne2 {[%clk 0:00:30]}  Qd7 {[%clk 0:00:56]} 26. Nc3 {[%clk 0:00:26]}  Rac8 {[%clk 0:00:48]} 27. Qd2 {[%clk 0:00:26]}  Nc6 {[%clk 0:00:41]} 28. Bh4 {[%clk 0:00:24]}  f5 {[%clk 0:00:23]} 29. Bb1 {[%clk 0:00:22]}  Rfe8 {[%clk 0:00:20]} 30. Bf2 {[%clk 0:00:17]}  Rxe1 {[%clk 0:00:20]} 31. Rxe1 {[%clk 0:00:17]}  Re8 {[%clk 0:00:20]} 32. a3 {[%clk 0:00:17]}  Rxe1+ {[%clk 0:00:18]} 33. Qxe1 {[%clk 0:00:18]}  Qe6 {[%clk 0:00:18]} 34. Qd2 {[%clk 0:00:16]}  Na5 {[%clk 0:00:18]} 35. Bc2 {[%clk 0:00:10]}  Qe7 {[%clk 0:00:15]} 36. h4 {[%clk 0:00:06]}  Nc6 {[%clk 0:00:10]} 37. h5 {[%clk 0:00:06]}  Kg7 {[%clk 0:00:09]} 38. hxg6 {[%clk 0:00:06]}  hxg6 {[%clk 0:00:09]} 39. Kf1 {[%clk 0:00:04]}  Qf6 {[%clk 0:00:06]} 40. Ba4 {[%clk 0:00:04]}  Nce7 {[%clk 0:00:05]} 41. Bg3 {[%clk 0:00:03]}  f4 {[%clk 0:00:04]} 42. Bf2 {[%clk 0:00:03]}  Nxc3 {[%clk 0:00:04]} 43. bxc3 {[%clk 0:00:03]}  Nd5 {[%clk 0:00:05]} 44. Kg1 {[%clk 0:00:03]}  Qe7 {[%clk 0:00:06]} 45. Bc6 {[%clk 0:00:02]}  Qxa3 {[%clk 0:00:03]} 46. Bxd5 {[%clk 0:00:03]}  Bxd5 {[%clk 0:00:04]} 47. Qxf4 {[%clk 0:00:03]}  Qe7 {[%clk 0:00:04]} 48. Bg3 {[%clk 0:00:03]}  a5 {[%clk 0:00:03]} 49. Qb8 {[%clk 0:00:03]}  a4 {[%clk 0:00:01]} 50. Be5+ {[%clk 0:00:03]}  Kf7 {[%clk 0:00:02]} 51. Qxb6 {[%clk 0:00:03]}  Be6 {[%clk 0:00:01]} 52. Qa6 {[%clk 0:00:03]}  a3 {[%clk 0:00:02]} 53. Bd6 {[%clk 0:00:03]}  Qd7 {[%clk 0:00:02]} 54. Qxa3 {[%clk 0:00:03]}  Qb5 {[%clk 0:00:01]} 55. Be5 {[%clk 0:00:03]}  Qb1+ {[%clk 0:00:01]} 56. Kf2 {[%clk 0:00:03]}  Qc2+ {[%clk 0:00:01]} 57. Kg3 {[%clk 0:00:03]}  g5 {[%clk 0:00:02]} 58. Qa7+ {[%clk 0:00:04]}  Kg6 {[%clk 0:00:02]} 59. Qg7+ {[%clk 0:00:04]}  Kf5 {[%clk 0:00:02]} 60. Qf6# {[%clk 0:00:05]} 1-0


[Site "https://www.chess.com"]

[Event "Titled Tuesday Blitz March 15 Late 2022"]
[White "Domingo Nunez, Alejandro"]
[Black "Papasimakopoulos, Alexandros"]
[WhiteFideId "22245561"]
[BlackFideId "4244125"]
[WhiteElo "2215"]
[BlackElo "2340"]
[Result "1-0"]
[Round "04"]
[TimeControl "180+1"]
[Date "2022.03.16"]
[WhiteClock "0:00:27"]
[BlackClock "0:00:10"]

1. Nf3 {[%clk 0:02:57]}  f5 {[%clk 0:01:15]} 2. c3 {[%clk 0:02:55]}  Nf6 {[%clk 0:01:15]} 3. d4 {[%clk 0:02:56]}  g6 {[%clk 0:01:15]} 4. Nbd2 {[%clk 0:02:54]}  Bg7 {[%clk 0:01:16]} 5. Qc2 {[%clk 0:02:54]}  e6 {[%clk 0:01:16]} 6. e4 {[%clk 0:02:55]}  fxe4 {[%clk 0:01:15]} 7. Nxe4 {[%clk 0:02:56]}  O-O {[%clk 0:01:16]} 8. Bg5 {[%clk 0:02:55]}  Qe8 {[%clk 0:01:16]} 9. Nxf6+ {[%clk 0:02:55]}  Bxf6 {[%clk 0:01:16]} 10. Bxf6 {[%clk 0:02:56]}  Rxf6 {[%clk 0:01:17]} 11. h4 {[%clk 0:02:56]}  Nc6 {[%clk 0:01:17]} 12. h5 {[%clk 0:02:57]}  e5 {[%clk 0:01:18]} 13. O-O-O {[%clk 0:02:57]}  d5 {[%clk 0:01:09]} 14. hxg6 {[%clk 0:02:50]}  Bf5 {[%clk 0:01:04]} 15. Qb3 {[%clk 0:02:25]}  exd4 {[%clk 0:01:02]} 16. Qxd5+ {[%clk 0:02:21]}  Kh8 {[%clk 0:01:01]} 17. Nxd4 {[%clk 0:02:14]}  Qxg6 {[%clk 0:00:54]} 18. Nxf5 {[%clk 0:01:50]}  Rxf5 {[%clk 0:00:44]} 19. Qe4 {[%clk 0:01:40]}  Re8 {[%clk 0:00:40]} 20. Qc2 {[%clk 0:01:40]}  Ne5 {[%clk 0:00:29]} 21. g3 {[%clk 0:01:33]}  Rf7 {[%clk 0:00:16]} 22. Qxg6 {[%clk 0:01:00]}  Nxg6 {[%clk 0:00:17]} 23. Bd3 {[%clk 0:01:00]}  Kg7 {[%clk 0:00:16]} 24. Rd2 {[%clk 0:00:50]}  Ree7 {[%clk 0:00:15]} 25. f4 {[%clk 0:00:46]}  b6 {[%clk 0:00:14]} 26. Kc2 {[%clk 0:00:40]}  Re3 {[%clk 0:00:14]} 27. Rg1 {[%clk 0:00:40]}  Rfe7 {[%clk 0:00:13]} 28. Rf1 {[%clk 0:00:38]}  Kf6 {[%clk 0:00:14]} 29. g4 {[%clk 0:00:37]}  Re1 {[%clk 0:00:12]} 30. g5+ {[%clk 0:00:38]}  Kf7 {[%clk 0:00:13]} 31. f5 {[%clk 0:00:37]}  Nf8 {[%clk 0:00:09]} 32. g6+ {[%clk 0:00:36]}  hxg6 {[%clk 0:00:07]} 33. fxg6+ {[%clk 0:00:37]}  Kg7 {[%clk 0:00:08]} 34. Rxe1 {[%clk 0:00:28]}  Rxe1 {[%clk 0:00:09]} 35. Rf2 {[%clk 0:00:29]}  Nxg6 {[%clk 0:00:08]} 36. Rg2 {[%clk 0:00:26]}  Re6 {[%clk 0:00:08]} 37. Kb3 {[%clk 0:00:27]}  Rd6 {[%clk 0:00:07]} 38. Bxg6 {[%clk 0:00:18]}  Rxg6 {[%clk 0:00:06]} 39. Rxg6+ {[%clk 0:00:19]}  Kxg6 {[%clk 0:00:07]} 40. Kc4 {[%clk 0:00:20]}  c6 {[%clk 0:00:08]} 41. b4 {[%clk 0:00:20]}  a6 {[%clk 0:00:08]} 42. a4 {[%clk 0:00:21]}  Kf6 {[%clk 0:00:07]} 43. a5 {[%clk 0:00:20]}  bxa5 {[%clk 0:00:05]} 44. bxa5 {[%clk 0:00:20]}  Ke6 {[%clk 0:00:03]} 45. Kc5 {[%clk 0:00:21]}  Kd7 {[%clk 0:00:04]} 46. Kb6 {[%clk 0:00:21]}  c5 {[%clk 0:00:03]} 47. c4 {[%clk 0:00:22]}  Kd6 {[%clk 0:00:03]} 48. Kxa6 {[%clk 0:00:22]}  Kc6 {[%clk 0:00:04]} 49. Ka7 {[%clk 0:00:22]}  Kc7 {[%clk 0:00:05]} 50. a6 {[%clk 0:00:22]}  Kd6 {[%clk 0:00:02]} 51. Kb6 {[%clk 0:00:22]}  Ke5 {[%clk 0:00:02]} 52. a7 {[%clk 0:00:21]}  Kd4 {[%clk 0:00:03]} 53. Kb5 {[%clk 0:00:22]}  Kd3 {[%clk 0:00:03]} 54. a8=Q {[%clk 0:00:22]}  Kd4 {[%clk 0:00:04]} 55. Qd5+ {[%clk 0:00:22]}  Kc3 {[%clk 0:00:05]} 56. Qxc5 {[%clk 0:00:23]}  Kb3 {[%clk 0:00:06]} 57. Qb4+ {[%clk 0:00:24]}  Ka2 {[%clk 0:00:07]} 58. c5 {[%clk 0:00:25]}  Ka1 {[%clk 0:00:08]} 59. c6 {[%clk 0:00:25]}  Ka2 {[%clk 0:00:08]} 60. c7 {[%clk 0:00:26]}  Ka1 {[%clk 0:00:09]} 61. c8=Q {[%clk 0:00:27]}  Ka2 {[%clk 0:00:10]} 62. Qa6# {[%clk 0:00:27]} 1-0


[Site "https://www.chess.com"]